bitfinex/quotes_BTCUSD_20250901
["timestamp","ask_amount","ask_price","bid_price","bid_amount"]
[1756700411301,1.5871571,107740.0,107730.0,1e-08]
[1756700411501,1.25189126,107740.0,107730.0,1e-08]
[1756700411704,1.33647475,107740.0,107730.0,1e-08]
[1756700412041,1.33847475,107740.0,107730.0,1e-08]
[1756700412333,1.10320891,107740.0,107730.0,1e-08]
[1756700412570,0.57035914,107730.0,107720.0,1e-08]
[1756700412840,2.01371433,107730.0,107720.0,1e-08]
[1756700413050,2.10666409,107730.0,107720.0,1e-08]
[1756700413270,1.72936409,107730.0,107720.0,1e-08]
[1756700413956,0.2094548,107710.0,107700.0,0.0102]
[1756700414175,0.86670065,107710.0,107700.0,0.0102]
[1756700414393,0.70906065,107710.0,107700.0,0.0102]
[1756700414611,0.86670065,107710.0,107700.0,0.0102]
[1756700415525,0.86870065,107710.0,107700.0,0.0102]
[1756700416184,0.86666065,107710.0,107700.0,0.0102]
[1756700416398,0.86862065,107710.0,107700.0,0.0102]
[1756700417542,0.86866065,107710.0,107700.0,0.0102]
[1756700417761,0.86666065,107710.0,107700.0,0.0102]
[1756700418232,0.86866065,107710.0,107700.0,0.0102]
[1756700418448,0.71106065,107710.0,107700.0,0.0102]
[1756700418646,0.86658065,107710.0,107700.0,0.0102]
[1756700418862,0.86858065,107710.0,107700.0,0.0102]
[1756700420860,0.87158065,107710.0,107700.0,0.0102]
[1756700421447,0.71406065,107710.0,107700.0,0.0102]
[1756700421654,0.87150065,107710.0,107700.0,0.0102]
[1756700422340,0.87146065,107710.0,107700.0,0.0102]
[1756700422723,0.93784582,107710.0,107700.0,0.0102]
[1756700423342,0.89600415,107710.0,107700.0,0.0102]
[1756700426170,0.89636415,107710.0,107700.0,0.0102]
[1756700428828,0.56109831,107710.0,107700.0,0.0102]
[1756700429031,0.89636415,107710.0,107700.0,0.0102]
[1756700430105,0.73860415,107710.0,107700.0,0.0102]
[1756700430308,0.89620415,107710.0,107700.0,0.0102]
[1756700430759,0.40333831,107710.0,107700.0,0.34546584]
[1756700430992,0.56093831,107710.0,107700.0,0.0102]
[1756700431281,0.4679583,107710.0,107700.0,0.0102]
[1756700431456,0.4659583,107710.0,107700.0,0.0102]
[1756700431802,0.4629583,107710.0,107700.0,0.0102]
[1756700432027,0.4649583,107710.0,107700.0,0.0102]
[1756700432229,0.28658728,107710.0,107700.0,0.0102]
[1756700432431,0.44418728,107710.0,107700.0,0.0102]
[1756700432642,0.20887452,107710.0,107700.0,0.68348812]
[1756700432851,0.18433102,107710.0,107700.0,0.90905986]
[1756700433053,0.20887452,107710.0,107700.0,0.90905986]
[1756700433724,0.18133102,107710.0,107700.0,0.90905986]
[1756700434146,0.04931452,107710.0,107700.0,0.90905986]
[1756700434358,0.18437102,107710.0,107700.0,0.90905986]
[1756700434569,0.02477102,107710.0,107700.0,1.20677403]
[1756700434774,0.02377102,107710.0,107700.0,1.20677403]
[1756700434980,0.02377102,107710.0,107700.0,1.54203987]
[1756700435186,0.02377102,107710.0,107700.0,1.54303987]
[1756700435401,0.02377102,107710.0,107700.0,1.94303987]
[1756700435577,0.02377102,107710.0,107700.0,1.94403987]
[1756700438234,0.02377102,107710.0,107700.0,1.60877403]
[1756700438424,0.02377102,107710.0,107700.0,1.94403987]
[1756700438963,0.02377102,107710.0,107700.0,1.60877403]
[1756700439148,0.02377102,107710.0,107700.0,1.94403987]
[1756700440918,0.02377102,107710.0,107700.0,1.60877403]
[1756700441126,0.02377102,107710.0,107700.0,1.94403987]
[1756700443836,0.02377102,107710.0,107700.0,2.27930571]
[1756700444607,0.02377102,107710.0,107700.0,1.76629403]
[1756700444815,0.02377102,107710.0,107700.0,2.10155987]
[1756700446286,0.02377102,107710.0,107700.0,2.43682571]
[1756700448268,0.02377102,107710.0,107700.0,2.10155987]
[1756700448434,0.02377102,107710.0,107700.0,2.10147987]
[1756700449576,0.04831452,107720.0,107710.0,0.18568378]
[1756700449749,0.04831452,107720.0,107710.0,0.52094962]
[1756700450682,0.23398106,107720.0,107710.0,0.70623962]
[1756700451108,0.04831452,107720.0,107710.0,0.70623962]
[1756700452700,0.04831452,107720.0,107710.0,0.37097378]
[1756700452900,0.04831452,107720.0,107710.0,0.70623962]
[1756700454981,0.02377102,107720.0,107710.0,1.49021963]
[1756700455189,0.02377102,107720.0,107710.0,1.49121963]
[1756700455600,0.02377102,107720.0,107710.0,1.15595379]
[1756700455751,0.02377102,107720.0,107710.0,1.49113963]
[1756700456169,0.02377102,107720.0,107710.0,1.73381963]
[1756700456339,0.02377102,107720.0,107710.0,1.89113963]
[1756700456726,0.02377102,107720.0,107710.0,1.89109963]
[1756700457342,0.23398106,107720.0,107710.0,1.84083962]
[1756700457541,0.39130106,107720.0,107710.0,1.10557378]
[1756700458369,0.39130106,107720.0,107710.0,1.44083962]
[1756700458767,0.39130106,107720.0,107710.0,1.10357378]
[1756700458980,0.39130106,107720.0,107710.0,1.43883962]
[1756700459831,0.39130106,107720.0,107710.0,1.10457378]
[1756700460439,0.20555452,107720.0,107710.0,1.43983962]
[1756700461261,0.20555452,107720.0,107710.0,1.44083962]
[1756700461465,0.18101102,107720.0,107710.0,1.44083962]
[1756700461667,0.20555452,107720.0,107710.0,1.44083962]
[1756700462074,0.16576465,107720.0,107710.0,1.44083962]
[1756700462282,0.37597469,107720.0,107710.0,1.44083962]
[1756700463734,0.37597469,107720.0,107710.0,0.91415584]
[1756700463951,0.37597469,107720.0,107710.0,0.17889]
[1756700464584,0.71124053,107720.0,107710.0,0.17789]
[1756700465005,0.37597469,107720.0,107710.0,0.17789]
[1756700465427,0.21873469,107720.0,107710.0,0.17789]
[1756700465630,0.37685469,107720.0,107710.0,0.17789]
[1756700466474,0.37885469,107720.0,107710.0,0.17789]
[1756700466683,0.37885469,107720.0,107710.0,0.02789]
[1756700466908,0.21875193,107710.0,107700.0,0.0102]
[1756700467113,0.21875193,107710.0,107700.0,0.038096]
[1756700469098,0.37579193,107710.0,107700.0,0.038096]
[1756700469239,0.71105777,107710.0,107700.0,0.038096]
[1756700469441,0.96834754,107710.0,107700.0,0.0102]
[1756700469744,0.87575778,107710.0,107700.0,0.0102]
[1756700471434,0.87775778,107710.0,107700.0,0.0102]
[1756700471773,0.87575778,107710.0,107700.0,0.0102]
[1756700472132,0.87571778,107710.0,107700.0,0.0102]
[1756700472337,0.88071778,107710.0,107700.0,0.0102]
[1756700472718,0.87771778,107710.0,107700.0,0.0102]
[1756700472925,0.88071778,107710.0,107700.0,0.0102]
[1756700473733,0.88687234,107710.0,107700.0,0.0102]
[1756700473939,0.88487234,107710.0,107700.0,0.0102]
[1756700474147,0.88787234,107710.0,107700.0,0.0102]
[1756700474348,0.88987234,107710.0,107700.0,0.0102]
[1756700474549,1.22987234,107710.0,107700.0,0.0102]
[1756700475135,1.22979234,107710.0,107700.0,0.0102]
[1756700477509,1.22975234,107710.0,107700.0,0.0102]
[1756700477870,0.8944865,107710.0,107700.0,0.0102]
[1756700478255,1.22975234,107710.0,107700.0,0.0102]
[1756700479100,0.8944865,107710.0,107700.0,0.0102]
[1756700479309,1.06335778,107710.0,107700.0,0.0102]
[1756700479523,1.22059778,107710.0,107700.0,0.0102]
[1756700480104,1.21859778,107710.0,107700.0,0.0102]
[1756700480505,1.22059778,107710.0,107700.0,0.0102]
[1756700480706,1.23009534,107710.0,107700.0,0.0102]
[1756700480975,1.22809534,107710.0,107700.0,0.0102]
[1756700481354,1.23009534,107710.0,107700.0,0.0102]
[1756700483052,1.07285534,107710.0,107700.0,0.0102]
[1756700483257,1.23005534,107710.0,107700.0,0.0102]
[1756700485444,1.07285534,107710.0,107700.0,0.0102]
[1756700485649,1.22997534,107710.0,107700.0,0.0102]
[1756700487856,1.22989534,107710.0,107700.0,0.0102]
[1756700488054,1.03881428,107710.0,107700.0,0.0102]
[1756700488285,0.54513194,107710.0,107700.0,0.0102]
[1756700488466,0.88039778,107710.0,107700.0,0.0102]
[1756700490814,0.87739778,107710.0,107700.0,0.0102]
[1756700491236,0.88039778,107710.0,107700.0,0.0102]
[1756700491620,0.87839778,107710.0,107700.0,0.0102]
[1756700493025,0.88027778,107710.0,107700.0,0.0102]
[1756700493547,0.72335778,107710.0,107700.0,0.0102]
[1756700493763,0.38809194,107710.0,107700.0,0.0102]
[1756700494119,0.54501194,107710.0,107700.0,0.0102]
[1756700494531,0.54001194,107710.0,107700.0,0.0102]
[1756700494725,0.35954844,107710.0,107700.0,0.0102]
[1756700494966,0.45003193,107710.0,107700.0,0.0102]
[1756700495598,0.45003193,107710.0,107700.0,0.038097]
[1756700496073,0.44903193,107710.0,107700.0,0.038097]
[1756700496568,0.44803193,107710.0,107700.0,0.038097]
[1756700496881,0.87827778,107710.0,107700.0,0.0102]
[1756700497084,0.87527778,107710.0,107700.0,0.0102]
[1756700497456,0.87827778,107710.0,107700.0,0.0102]
[1756700498913,1.21827778,107710.0,107700.0,0.0102]
[1756700502501,1.55354362,107710.0,107700.0,0.0102]
[1756700503879,1.21827778,107710.0,107700.0,0.0102]
[1756700504252,1.55354362,107710.0,107700.0,0.0102]
[1756700505525,1.39662362,107710.0,107700.0,0.0102]
[1756700505727,1.55354362,107710.0,107700.0,0.0102]
[1756700507852,1.39662362,107710.0,107700.0,0.0102]
[1756700508088,1.55350362,107710.0,107700.0,0.0102]
[1756700508979,1.21823778,107710.0,107700.0,0.0102]
[1756700509413,1.06135778,107710.0,107700.0,0.0102]
[1756700509612,1.21827778,107710.0,107700.0,0.0102]
[1756700510698,1.06135778,107710.0,107700.0,0.0102]
[1756700510852,1.21823778,107710.0,107700.0,0.0102]
[1756700512505,0.88297194,107710.0,107700.0,0.0102]
[1756700512720,1.21823778,107710.0,107700.0,0.0102]
[1756700515468,0.72609194,107710.0,107700.0,0.0102]
[1756700515674,1.21811778,107710.0,107700.0,0.0102]
[1756700519058,1.21807778,107710.0,107700.0,0.0102]
[1756700519292,0.69302379,107710.0,107700.0,0.0102]
[1756700519524,1.21811778,107710.0,107700.0,0.0102]
[1756700519848,0.87811778,107710.0,107700.0,0.0102]
[1756700520607,0.53432729,107710.0,107700.0,0.0102]
[1756700521018,0.87811778,107710.0,107700.0,0.0102]
[1756700522454,0.85357428,107710.0,107700.0,0.0102]
[1756700522647,0.87811778,107710.0,107700.0,0.0102]
[1756700524222,0.97106754,107710.0,107700.0,0.0102]
[1756700524416,0.87811778,107710.0,107700.0,0.0102]
[1756700525059,0.54285194,107710.0,107700.0,0.0102]
[1756700525270,0.87811778,107710.0,107700.0,0.0102]
[1756700527562,1.21811778,107710.0,107700.0,0.0102]
[1756700529018,1.64633338,107710.0,107700.0,0.0102]
[1756700529221,1.55338362,107710.0,107700.0,0.0102]
[1756700529420,1.24602078,107710.0,107700.0,0.0102]
[1756700529866,1.58128662,107710.0,107700.0,0.0102]
[1756700530443,1.24602078,107710.0,107700.0,0.0102]
[1756700530648,1.58128662,107710.0,107700.0,0.0102]
[1756700533444,1.60222544,107710.0,107700.0,0.0102]
[1756700536433,1.7451752,107710.0,107700.0,0.0102]
[1756700538142,0.82493376,107710.0,107700.0,0.0102]
[1756700538375,0.92312911,107710.0,107700.0,0.0102]
[1756700538550,1.2669196,107710.0,107700.0,0.0102]
[1756700539322,1.25839495,107710.0,107700.0,0.0102]
[1756700539509,1.05619263,107710.0,107700.0,0.0102]
[1756700539742,1.23745613,107710.0,107700.0,0.0102]
[1756700539945,1.24598078,107710.0,107700.0,0.0102]
[1756700540154,0.87807778,107710.0,107700.0,0.0102]
[1756700540718,0.36154844,107710.0,107700.0,0.0102]
[1756700540920,0.54281194,107710.0,107700.0,0.0102]
[1756700541145,0.51826844,107710.0,107700.0,0.0102]
[1756700541346,0.54281194,107710.0,107700.0,0.0102]
[1756700541554,0.51826844,107710.0,107700.0,0.0102]
[1756700541786,0.54281194,107710.0,107700.0,0.0102]
[1756700542476,0.87807778,107710.0,107700.0,0.0102]
[1756700543003,0.54281194,107710.0,107700.0,0.0102]
[1756700543896,0.54081194,107710.0,107700.0,0.0102]
[1756700544099,0.54281194,107710.0,107700.0,0.0102]
[1756700544343,0.53981194,107710.0,107700.0,0.0102]
[1756700544556,0.29111193,107710.0,107700.0,0.0102]
[1756700544720,0.44979193,107710.0,107700.0,0.3477871]
[1756700544919,0.44979193,107710.0,107700.0,0.0102]
[1756700545306,0.78405777,107710.0,107700.0,0.038095]
[1756700545509,0.78505777,107710.0,107700.0,0.0102]
[1756700545909,0.44979193,107710.0,107700.0,0.0102]
[1756700546133,0.78505777,107710.0,107700.0,0.0102]
[1756700546612,0.44979193,107710.0,107700.0,0.0102]
[1756700547261,0.44979193,107710.0,107700.0,0.05279408]
[1756700547684,0.29311193,107710.0,107700.0,0.05279408]
[1756700547893,0.44979193,107710.0,107700.0,0.05279408]
[1756700548628,0.44979193,107710.0,107700.0,0.39038118]
[1756700548833,0.44979193,107710.0,107700.0,0.41595592]
[1756700549025,0.44979193,107710.0,107700.0,0.08069008]
[1756700549225,0.44979193,107710.0,107700.0,0.08301134]
[1756700550383,0.44679193,107710.0,107700.0,0.08301134]
[1756700550599,0.44879193,107710.0,107700.0,0.08301134]
[1756700551158,0.44779193,107710.0,107700.0,0.08301134]
[1756700551764,0.44779193,107710.0,107700.0,0.41827718]
[1756700551973,0.44779193,107710.0,107700.0,0.41595592]
[1756700552999,0.44779193,107710.0,107700.0,0.08069008]
[1756700553265,0.44779193,107710.0,107700.0,0.08301134]
[1756700558643,0.44779193,107710.0,107700.0,0.08069008]
[1756700559261,0.44779193,107710.0,107700.0,0.08301134]
[1756700560103,0.44779193,107710.0,107700.0,0.08069008]
[1756700560932,0.87603778,107710.0,107700.0,0.08069008]
[1756700561133,0.87603778,107710.0,107700.0,0.05279408]
[1756700565217,0.54077194,107710.0,107700.0,0.05279408]
[1756700565384,0.87603778,107710.0,107700.0,0.05279408]
[1756700566202,0.54077194,107710.0,107700.0,0.05279408]
[1756700566399,0.87603778,107710.0,107700.0,0.0102]
[1756700566605,1.32373778,107710.0,107700.0,0.0102]
[1756700568309,0.98847194,107710.0,107700.0,0.0102]
[1756700568534,1.32373778,107710.0,107700.0,0.0102]
[1756700571466,0.98843194,107710.0,107700.0,0.0102]
[1756700571596,1.32369778,107710.0,107700.0,0.0102]
[1756700574289,1.66369778,107710.0,107700.0,0.0102]
[1756700575343,2.06801288,107710.0,107700.0,0.0102]
[1756700575547,1.99896362,107710.0,107700.0,0.0102]
[1756700575756,1.6948366,107710.0,107700.0,0.0102]
[1756700576017,1.58240244,107710.0,107700.0,1e-08]
[1756700576212,1.7753522,107710.0,107700.0,1e-08]
[1756700577032,1.7743522,107710.0,107700.0,1e-08]
[1756700577238,1.7793522,107710.0,107700.0,1e-08]
[1756700577504,0.23970799,107700.0,107690.0,1e-08]
[1756700577806,1.15985968,107700.0,107690.0,1e-08]
[1756700578720,1.18776668,107700.0,107690.0,1e-08]
[1756700579165,0.85250084,107700.0,107690.0,1e-08]
[1756700580074,0.90950084,107700.0,107690.0,1e-08]
[1756700580311,0.95950084,107700.0,107690.0,1e-08]
[1756700581817,0.80286084,107700.0,107690.0,1e-08]
[1756700582077,1.0524906,107700.0,107690.0,1e-08]
[1756700586670,0.8958106,107700.0,107690.0,1e-08]
[1756700586871,1.0524906,107700.0,107690.0,1e-08]
[1756700588154,0.367595,107700.0,107690.0,1e-08]
[1756700588585,0.524275,107700.0,107690.0,1e-08]
[1756700589126,0.85954084,107700.0,107690.0,1e-08]
[1756700589329,0.524275,107700.0,107690.0,1e-08]
[1756700592739,0.85954084,107700.0,107690.0,1e-08]
[1756700596715,0.524275,107700.0,107690.0,1e-08]
[1756700597782,0.34665618,107700.0,107690.0,1e-08]
[1756700597918,1.15065502,107700.0,107690.0,1e-08]
[1756700598579,1.14765502,107700.0,107690.0,1e-08]
[1756700599113,1.15065502,107700.0,107690.0,1e-08]
[1756700599538,1.14765502,107700.0,107690.0,1e-08]
[1756700600101,1.14965502,107700.0,107690.0,1e-08]
[1756700600399,1.14565502,107700.0,107690.0,1e-08]
[1756700600916,1.14865502,107700.0,107690.0,1e-08]
[1756700603644,1.23113407,107700.0,107690.0,1e-08]
[1756700604093,1.25591588,107700.0,107690.0,1e-08]
[1756700604225,1.27863788,107700.0,107690.0,1e-08]
[1756700605388,1.25385607,107700.0,107690.0,1e-08]
[1756700610203,1.30385607,107700.0,107690.0,1e-08]
[1756700610403,0.23972523,107690.0,107680.0,1e-08]
[1756700610708,0.653695,107690.0,107680.0,1e-08]
[1756700611094,0.66297668,107690.0,107680.0,1e-08]
[1756700611420,1.33350836,107690.0,107680.0,1e-08]
[1756700612075,1.33450836,107690.0,107680.0,1e-08]
[1756700612412,1.36341736,107690.0,107680.0,1e-08]
[1756700613304,1.41341736,107690.0,107680.0,1e-08]
[1756700614971,1.46341736,107690.0,107680.0,1e-08]
[1756700616083,1.80341736,107690.0,107680.0,1e-08]
[1756700619487,1.64677736,107690.0,107680.0,1e-08]
[1756700619659,1.80341736,107690.0,107680.0,1e-08]
[1756700619896,1.13288568,107690.0,107680.0,1e-08]
[1756700620087,1.80341736,107690.0,107680.0,1e-08]
[1756700623220,0.97624568,107690.0,107680.0,1e-08]
[1756700623416,1.80341736,107690.0,107680.0,1e-08]
[1756700623626,1.31151152,107690.0,107680.0,1e-08]
[1756700623837,1.46815152,107690.0,107680.0,1e-08]
[1756700624449,1.41815152,107690.0,107680.0,1e-08]
[1756700624871,1.46815152,107690.0,107680.0,1e-08]
[1756700625077,1.41815152,107690.0,107680.0,1e-08]
[1756700625296,1.46815152,107690.0,107680.0,1e-08]
[1756700625511,1.41815152,107690.0,107680.0,1e-08]
[1756700625899,1.32516176,107690.0,107680.0,1e-08]
[1756700629860,1.27516176,107690.0,107680.0,1e-08]
[1756700630074,1.32516176,107690.0,107680.0,1e-08]
[1756700631141,1.27516176,107690.0,107680.0,1e-08]
[1756700631763,1.32516176,107690.0,107680.0,1e-08]
[1756700631978,1.26151152,107690.0,107680.0,1e-08]
[1756700632190,1.41811152,107690.0,107680.0,1e-08]
[1756700632417,1.40882984,107690.0,107680.0,1e-08]
[1756700633911,1.31588008,107690.0,107680.0,1e-08]
[1756700634570,1.26588008,107690.0,107680.0,1e-08]
[1756700634778,1.31588008,107690.0,107680.0,1e-08]
[1756700639075,1.26588008,107690.0,107680.0,1e-08]
[1756700639410,1.31588008,107690.0,107680.0,1e-08]
[1756700640256,1.40882984,107690.0,107680.0,1e-08]
[1756700641684,1.45882984,107690.0,107680.0,1e-08]
[1756700642901,1.79409568,107690.0,107680.0,1e-08]
[1756700643115,0.57977698,107660.0,107650.0,0.0002]
[1756700643330,1.23598283,107660.0,107650.0,0.0002]
[1756700643552,1.09894231,107660.0,107650.0,0.0002]
[1756700643776,1.23598283,107660.0,107650.0,0.0002]
[1756700644443,1.23598283,107660.0,107650.0,0.00028825]
[1756700645278,1.08142283,107660.0,107650.0,0.00028825]
[1756700645496,1.23798283,107660.0,107650.0,0.00028825]
[1756700645704,0.90471699,107660.0,107650.0,0.00028825]
[1756700645915,1.23998283,107660.0,107650.0,0.00028825]
[1756700646507,1.08342283,107660.0,107650.0,0.00028825]
[1756700646718,1.23998283,107660.0,107650.0,0.00028825]
[1756700647362,1.08342283,107660.0,107650.0,0.00028825]
[1756700647581,1.23998283,107660.0,107650.0,0.00028825]
[1756700647831,1.32613704,107660.0,107650.0,0.00028825]
[1756700650405,1.32613704,107660.0,107650.0,1e-08]
[1756700651359,0.5798115,107640.0,107630.0,0.0002]
[1756700651559,0.5798115,107640.0,107630.0,0.00024763]
[1756700651560,1.57128319,107640.0,107630.0,0.00024763]
[1756700654284,0.21888994,107630.0,107620.0,1e-08]
[1756700654481,0.87463461,107630.0,107620.0,1e-08]
[1756700655111,0.88483461,107630.0,107620.0,1e-08]
[1756700655514,1.31778437,107630.0,107620.0,1e-08]
[1756700655894,0.5798633,107610.0,107600.0,0.0102]
[1756700656108,0.20681242,107600.0,107590.0,1e-08]
[1756700656307,0.82468642,107600.0,107590.0,1e-08]
[1756700657945,0.91513881,107600.0,107590.0,1e-08]
[1756700658145,0.83400726,107600.0,107590.0,1e-08]
[1756700658376,0.67844726,107600.0,107590.0,1e-08]
[1756700658571,0.83604726,107600.0,107590.0,1e-08]
[1756700658822,0.83604726,107600.0,107580.0,0.0102]
[1756700658823,0.55895903,107590.0,107580.0,1e-08]
[1756700659025,1.21524488,107590.0,107580.0,0.00014265]
[1756700659334,1.2361837,107590.0,107580.0,0.00014265]
[1756700660086,1.2401837,107590.0,107580.0,0.00014265]
[1756700660648,1.2411837,107590.0,107580.0,0.00014265]
[1756700660842,1.2431837,107590.0,107580.0,0.00014265]
[1756700661043,1.2381837,107590.0,107580.0,0.00014265]
[1756700661247,1.6858837,107590.0,107580.0,0.00014265]
[1756700661951,1.6878837,107590.0,107580.0,0.00014265]
[1756700662163,2.1160993,107590.0,107580.0,1e-08]
[1756700662366,1.78083346,107590.0,107580.0,1e-08]
[1756700662587,1.6878837,107590.0,107580.0,1e-08]
[1756700663427,1.6878837,107590.0,107570.0,1e-08]
[1756700663428,1.30044681,107580.0,107570.0,1e-08]
[1756700663638,1.55002682,107580.0,107570.0,8.853e-05]
[1756700663812,1.59168443,107580.0,107570.0,8.853e-05]
[1756700664013,0.19448466,107550.0,107540.0,0.00614691]
[1756700664235,0.51550467,107550.0,107540.0,0.00662339]
[1756700664388,0.54004817,107550.0,107540.0,0.00662339]
[1756700665423,0.54004817,107550.0,107540.0,0.03456339]
[1756700666344,1.64363297,107550.0,107540.0,0.00662339]
[1756700666546,1.64363297,107550.0,107540.0,1e-08]
[1756700666791,0.23998428,107540.0,107530.0,1e-08]
[1756700667004,0.48960429,107540.0,107530.0,1e-08]
[1756700667221,0.82487013,107540.0,107530.0,1e-08]
[1756700667432,0.96781989,107540.0,107530.0,1e-08]
[1756700667852,0.88419359,107540.0,107530.0,1e-08]
[1756700669020,0.83419359,107540.0,107530.0,1e-08]
[1756700670080,0.67755359,107540.0,107530.0,1e-08]
[1756700670287,0.88419359,107540.0,107530.0,1e-08]
[1756700670492,0.83419359,107540.0,107530.0,1e-08]
[1756700672502,1.28189359,107540.0,107530.0,1e-08]
[1756700672708,1.12525359,107540.0,107530.0,1e-08]
[1756700673048,1.28193359,107540.0,107530.0,1e-08]
[1756700674108,0.83423359,107540.0,107530.0,1e-08]
[1756700674499,0.8345787,107540.0,107530.0,1e-08]
[1756700674700,0.49931286,107540.0,107530.0,1e-08]
[1756700675014,0.8345787,107540.0,107530.0,1e-08]
[1756700675382,0.3333094,107540.0,107530.0,1e-08]
[1756700675659,0.83452402,107540.0,107530.0,1e-08]
[1756700676560,0.49925818,107540.0,107530.0,1e-08]
[1756700676768,0.83452402,107540.0,107530.0,1e-08]
[1756700677929,0.31237058,107540.0,107530.0,0.00927252]
[1756700678222,0.46905058,107540.0,107530.0,0.00927252]
[1756700678478,0.80905058,107540.0,107530.0,0.03721652]
[1756700680901,0.65237058,107540.0,107530.0,0.03721652]
[1756700681111,0.80905058,107540.0,107530.0,0.03721652]
[1756700681336,0.46905058,107540.0,107530.0,0.03721652]
[1756700682435,0.21939057,107540.0,107530.0,0.37480729]
[1756700682657,0.37607057,107540.0,107530.0,0.37248236]
[1756700682860,0.37107057,107540.0,107530.0,0.37248236]
[1756700683520,0.37207057,107540.0,107530.0,0.37248236]
[1756700683949,0.37107057,107540.0,107530.0,0.03721652]
[1756700684157,0.37107057,107540.0,107530.0,0.04054145]
[1756700684386,0.37107057,107540.0,107530.0,0.04354145]
[1756700684850,0.79931642,107540.0,107530.0,0.04121652]
[1756700685282,0.79931642,107540.0,107530.0,0.03821652]
[1756700685506,0.79931642,107540.0,107530.0,0.02894401]
[1756700686019,1.16025524,107540.0,107530.0,0.02794401]
[1756700686209,1.16025524,107540.0,107530.0,1e-08]
[1756700686433,1.16025524,107540.0,107530.0,0.02794501]
[1756700686647,1.16025524,107540.0,107530.0,0.02994501]
[1756700687086,1.16125524,107540.0,107530.0,0.02994501]
[1756700689994,0.64837058,107540.0,107530.0,0.02994501]
[1756700690221,0.80505058,107540.0,107530.0,0.02994501]
[1756700690665,0.80405058,107540.0,107530.0,0.02794501]
[1756700691113,0.80505058,107540.0,107530.0,0.02794501]
[1756700691573,0.80505058,107540.0,107530.0,0.02994501]
[1756700691912,0.34752707,107540.0,107530.0,0.03226994]
[1756700692139,0.37107057,107540.0,107530.0,0.03226994]
[1756700693157,0.79931642,107540.0,107530.0,0.02994501]
[1756700694203,0.79931642,107540.0,107530.0,0.02794501]
[1756700694376,0.46405058,107540.0,107530.0,0.02794501]
[1756700695571,0.46505058,107540.0,107530.0,0.02794501]
[1756700701981,0.46405058,107540.0,107530.0,0.02794501]
[1756700702202,0.46405058,107540.0,107530.0,0.02994501]
[1756700702645,1.16025524,107540.0,107530.0,0.00200001]
[1756700703742,1.16025524,107540.0,107530.0,1e-08]
[1756700704139,1.16021524,107540.0,107530.0,1e-08]
[1756700704628,1.16025524,107540.0,107530.0,1e-08]
[1756700704846,1.16125524,107540.0,107530.0,1e-08]
[1756700705287,1.16025524,107540.0,107530.0,1e-08]
[1756700705721,1.00457524,107540.0,107530.0,1e-08]
[1756700705931,1.16125524,107540.0,107530.0,1e-08]
[1756700706374,0.6693094,107540.0,107530.0,1e-08]
[1756700706594,1.16125524,107540.0,107530.0,1e-08]
[1756700708133,0.8259894,107540.0,107530.0,1e-08]
[1756700708348,1.16125524,107540.0,107530.0,1e-08]
[1756700708554,1.16091013,107540.0,107530.0,1e-08]
[1756700711379,1.00423013,107540.0,107530.0,1e-08]
[1756700711627,0.64442079,107540.0,107530.0,1e-08]
[1756700711806,0.82564429,107540.0,107530.0,1e-08]
[1756700712010,0.80470547,107540.0,107530.0,1e-08]
[1756700712628,0.80470547,107540.0,107530.0,0.02794301]
[1756700712828,0.64802547,107540.0,107530.0,0.02794301]
[1756700713265,0.80470547,107540.0,107530.0,0.02794301]
[1756700713690,0.80370547,107540.0,107530.0,0.02794301]
[1756700713907,0.80470547,107540.0,107530.0,0.02794301]
[1756700714119,1.13997131,107540.0,107530.0,0.02794301]
[1756700715667,0.80470547,107540.0,107530.0,0.02794301]
[1756700715872,1.13997131,107540.0,107530.0,0.02794301]
[1756700716555,0.98329131,107540.0,107530.0,0.02794301]
[1756700716752,0.80466547,107540.0,107530.0,0.02794301]
[1756700717823,0.64802547,107540.0,107530.0,0.02794301]
[1756700718185,0.80466547,107540.0,107530.0,0.02794301]
[1756700719261,0.58000157,107530.0,107520.0,0.30031]
[1756700719468,1.23636742,107530.0,107520.0,0.30031]
[1756700720117,0.56841698,107500.0,107490.0,0.33526584]
[1756700720335,0.18608113,107480.0,107470.0,0.2]
[1756700720545,0.18608113,107480.0,107470.0,0.57988585]
[1756700720746,0.18608113,107480.0,107460.0,0.55674584]
[1756700720747,0.18609844,107470.0,107460.0,0.37812]
[1756700720952,0.18609844,107470.0,107460.0,0.31446001]
[1756700721168,0.18609844,107470.0,107460.0,1.1509018]
[1756700721405,0.18609844,107470.0,107460.0,1.1788548]
[1756700721601,0.18657234,107470.0,107460.0,1.1788548]
[1756700722035,0.18657234,107470.0,107460.0,0.68694896]
[1756700722325,0.18657234,107470.0,107460.0,0.62210896]
[1756700722520,0.18657234,107470.0,107460.0,0.9673748]
[1756700722943,0.0004739,107470.0,107460.0,1.15349056]
[1756700723126,0.18657234,107470.0,107460.0,0.9733748]
[1756700723353,0.18657234,107470.0,107460.0,0.88039479]
[1756700723586,0.18657234,107470.0,107460.0,1.06651055]
[1756700723817,0.18657234,107470.0,107460.0,0.88039479]
[1756700724036,0.18657234,107470.0,107460.0,0.54512895]
[1756700724447,0.18657234,107470.0,107460.0,1.06651055]
[1756700724671,0.18657234,107470.0,107460.0,0.88039479]
[1756700725576,0.15888616,107470.0,107460.0,1.06651055]
[1756700725754,0.15888616,107470.0,107460.0,0.88039479]
[1756700725951,0.28273893,107480.0,107460.0,0.90987055]
[1756700726151,0.43941893,107480.0,107470.0,0.33759207]
[1756700726365,0.43941893,107480.0,107470.0,0.33526584]
[1756700726769,0.0245435,107480.0,107470.0,0.52136428]
[1756700726974,0.00852465,107490.0,107480.0,0.18608113]
[1756700727191,0.45721128,107500.0,107480.0,0.67802697]
[1756700727424,0.45721128,107500.0,107480.0,0.15668]
[1756700727425,0.18606381,107490.0,107480.0,0.15668]
[1756700727632,0.18601731,107490.0,107480.0,0.15668]
[1756700727823,0.18541935,107490.0,107480.0,0.34276113]
[1756700728624,0.18541935,107490.0,107480.0,0.68502697]
[1756700730010,0.18541935,107490.0,107480.0,0.68902697]
[1756700730410,0.18541935,107490.0,107480.0,0.71697497]
[1756700732330,0.18541935,107490.0,107480.0,0.71709497]
[1756700733224,0.18541935,107490.0,107480.0,0.53101384]
[1756700733424,0.18541935,107490.0,107480.0,0.038948]
[1756700733661,0.18541935,107490.0,107480.0,0.195988]
[1756700734471,0.18541935,107490.0,107480.0,0.38206913]
[1756700735823,0.18541935,107490.0,107480.0,0.71733497]
[1756700737677,0.18606381,107490.0,107480.0,0.91733497]
[1756700741954,0.18606381,107490.0,107480.0,0.91729497]
[1756700748334,0.18606381,107490.0,107480.0,0.91709497]